[Event "WWRR IM-Group 2024"]
[Site "Wachtebeke"]
[Date "2024.02.12"]
[Round "3.1"]
[White "Gloeckler, Christian"]
[Black "Leenhouts, Koen"]
[Result "1/2-1/2"]
[ECO "B40"]
[WhiteElo "2354"]
[BlackElo "2433"]
[Annotator "TA"]
[PlyCount "63"]
[EventDate "2024.02.12"]
[EventType "tourn"]
[EventCountry "BEL"]
[SourceTitle "playchess.com"]
[Source "ChessBase"]
[SourceQuality "1"]
[TimeControl "40/5400+30:900+30"]

{[%evp 9,63,3,0,8,0,0,0,0,0,0,0,0,0,-16,17,19,87,68,85,86,77,84,83,44,29,52,37,35,43,40,46,22,22,-23,-40,-22,-22,-22,-27,-43,-46,-47,-49,-88,-88,-87,-83,-81,-21,-58,-69,-69,-14,-17,-17,-13]} 1. e4 {[%emt 0:00:03]} c5 {[%emt 0:00:07]} 2. Nf3 {[%emt 0:00:10]} e6 {[%emt 0:00:06]} 3. g3 {[%emt 0:00:47]} Nc6 {[%emt 0:02:04]} 4. Bg2 {[%emt 0:00:32]} Nf6 {[%emt 0:00:11]} 5. Qe2 {[%emt 0:00:31]} e5 {[%emt 0:00:14]} 6. O-O {[%emt 0:00:36]} Be7 {[%emt 0:00:08]} 7. c3 {[%emt 0:00:45][%cal Od2d4]} O-O {[%emt 0:00:20]} 8. Na3 {[%emt 0:00:39][%cal Bb1a3,Ba3c4,Bc4e5][%mdl 32]} Re8 {[%emt 0:01:02]} 9. d3 {[%emt 0:01:07]} h6 {[%emt 0:00:23]} 10. Nc4 {[%emt 0:00:59]} Bf8 {[%emt 0:00:23]} 11. a4 {[%emt 0:00:42]} d5 {[%emt 0:07:33]} 12. exd5 {[%emt 0:00:49]} Nxd5 {[%emt 0:00:21]} (12... Qxd5 $11 13. Re1 e4 14. dxe4 Rxe4) 13. Nfxe5 $16 {[%emt 0:01:02]} ({But not} 13. Ncxe5 Qd6 14. d4 cxd4 $15) 13... Nxe5 {[%emt 0:18:24]} 14. Nxe5 {[%emt 0:00:15]} Nf6 {[%emt 0:02:07][%cal Of6g4]} 15. f4 {[%emt 0:03:19]} Bd6 {[%emt 0:01:34]} 16. Be3 {[%emt 0:16:05] White is more active.} Bxe5 {[%emt 0:02:41]} 17. fxe5 {[%emt 0:00:31]} Rxe5 {[%emt 0:00:12]} 18. Qd2 {[%emt 0:02:19]} Qe7 {[%emt 0:09:10]} 19. Rae1 {[%emt 0:05:25][%cal Oe3c5] [#] Threatens to win with Bxc5!} Be6 {[%emt 0:04:33]} 20. d4 {[%emt 0:04:34]} Rd8 {[%emt 0:13:09]} 21. Rxf6 {[%emt 0:04:31]} gxf6 {[%emt 0:01:47]} 22. Qc1 $1 {[%emt 0:04:44]} cxd4 {[%emt 0:01:04]} 23. cxd4 {[%emt 0:01:56]} Ra5 {[%emt 0:08:54]} 24. Bd2 {[%emt 0:04:39]} Rxa4 {[%emt 0:02:39]} 25. d5 {[%emt 0:03:31]} Rd4 $1 {[%emt 0:00:32]} 26. Be3 {[%emt 0:10:41] This pair of bishops is nice.} (26. Qc3 R8xd5 27. Bxd5 Rxd5 28. Bxh6 Qd8 $17) 26... R4xd5 {[%emt 0:01:33]} (26... Rc8 27. Qb1 Rxd5 28. Bxd5 Bxd5 29. Qf5 $17) 27. Bxd5 {[%emt 0:00:06]} Rxd5 {[%emt 0:00:15]} ({Much weaker is} 27... Bxd5 $6 28. Bb6 (28. Bxa7 Qb4 $15) 28... Be6 29. Bxd8 Qxd8 30. Qxh6 $11) 28. Bxa7 {[%emt 0:00:22]} Qb4 {[%emt 0:04:21]} ({Black should try} 28... Qd6 $17 {And now ...b6 would win.} 29. Bf2 Kg7) 29. Be3 {[%emt 0:07:47] White is weak on the light squares} Re5 {[%emt 0:04:49]} 30. Qd2 {[%emt 0:07:13] Wards off Bd5} Qxd2 {[%emt 0:01:17]} (30... Qe4 $15 31. Qd8+ Kh7) 31. Bxd2 $11 {[%emt 0:00:03]} Kg7 {[%emt 0:00:33]} 32. Bc3 {[%emt 0:01:14] Weighted Error Value: White=0.11 (very precise) /Black=0.13 (very precise) .  Mistake:       	---       	Black=3      Inaccurate:     	White=4     	Black=1      OK:         	White=10    	Black=11     Best:        	White=1     	Black=2      Strong:       	White=1     	Black=1} 1/2-1/2

[Event "WWRR IM-Group 2024"]
[Site "Wachtebeke"]
[Date "2024.02.12"]
[Round "3.2"]
[White "Milliet, Sophie"]
[Black "Hauchamps, Maxime"]
[Result "1-0"]
[ECO "B31"]
[WhiteElo "2384"]
[BlackElo "2267"]
[Annotator "TA"]
[PlyCount "79"]
[EventDate "2024.02.12"]
[EventType "tourn"]
[EventCountry "BEL"]
[SourceTitle "playchess.com"]
[Source "ChessBase"]
[SourceQuality "1"]
[TimeControl "40/5400+30:900+30"]

{[%evp 9,79,21,28,26,25,10,33,31,37,27,35,35,30,28,34,22,24,14,20,47,20,-17,0,0,3,0,36,11,32,29,23,16,74,59,43,60,81,77,71,79,78,75,69,68,189,185,197,193,236,147,168,83,81,90,260,79,247,221,218,181,220,232,752,738,725,739,1396,971,1359,968,878,560]} 1. e4 {[%emt 0:00:04]} c5 {[%emt 0:00:09]} 2. Nf3 {[%emt 0:00:05]} Nc6 {[%emt 0:00:10]} 3. Bb5 {[%emt 0:00:17]} g6 {[%emt 0:00:06]} 4. Bxc6 {[%emt 0:00:09]} dxc6 {[%emt 0:00:06]} 5. d3 {[%emt 0:00:06]} Bg7 {[%emt 0:00:06]} 6. a4 {[%emt 0:00:08]} a5 {[%emt 0:01:45]} 7. h3 {[%emt 0:00:34]} Nf6 {[%emt 0:00:55][%cal Bg8f6,Bf6d7,Bd7f8,Bf8e6,Be6d4][%mdl 32]} 8. Be3 {[%emt 0:00:27] White is slightly better.} Nd7 {[%emt 0:01:05]} 9. Nc3 {[%emt 0:01:21]} e5 {[%emt 0:00:24]} 10. Qd2 {[%emt 0:00:23]} h6 {[%emt 0:00:17]} 11. Nh2 {[%emt 0:03:19]} b6 {[%emt 0:00:46]} 12. O-O {[%emt 0:00:23]} Nf8 {[%emt 0:00:37]} 13. f4 {[%emt 0:01:39]} exf4 {[%emt 0:00:08]} 14. Bxf4 {[%emt 0:00:20]} Ne6 {[%emt 0:00:18]} 15. Bg3 {[%emt 0:00:38]} Qg5 {[%emt 0:00:12]} 16. Qe1 {[%emt 0:05:11]} Nd4 {[%emt 0:00:16]} 17. Nf3 {[%emt 0:09:04]} Qe7 {[%emt 0:10:29]} 18. Qd2 {[%emt 0:04:55]} Be6 {[%emt 0:08:44]} 19. e5 $36 {[%emt 0:03:02][%mdl 2048] White is more active.} Bf5 {[%emt 0:06:02]} 20. Rae1 {[%emt 0:04:00]} O-O-O {[%emt 0:03:34]} (20... Nxf3+ $11 {keeps the balance.} 21. Rxf3 Qd7) 21. Nxd4 {[%emt 0:18:12]} Rxd4 {[%emt 0:01:44]} 22. b3 {[%emt 0:07:21]} Re8 {[%emt 0:09:44]} 23. Qf2 {[%emt 0:04:01]} Qd7 {[%emt 0:06:36]} 24. Qf3 {[%emt 0:01:59][%cal Oc3b5]} Be6 {[%emt 0:17:38]} 25. Ne4 {[%emt 0:02:03]} Kb8 {[%emt 0:02:39]} 26. Nd6 {[%emt 0:02:17]} Re7 {[%emt 0:03:31] [#]} (26... Rf8 $14) 27. Nxf7 $1 $18 {[%emt 0:06:23][%mdl 512]} Ka7 {[%emt 0:04:46]} (27... Rxf7 $2 28. Qxf7 Qxf7 29. Rxf7 Bxf7 30. e6+ Kb7 31. exf7 $18) 28. Nd6 {[%emt 0:00:04]} Bg8 {[%emt 0:00:49]} 29. Nc4 {[%emt 0:03:50]} Rd5 {[%emt 0:02:43] [#]} 30. e6 {[%emt 0:02:36]} Bxe6 $16 {[%emt 0:03:24]} 31. Qf4 {[%emt 0:00:26] White is much more active.} Qc8 {[%emt 0:03:17] [#] Inhibits Qb8+.} (31... Qd8 $16) 32. Qe4 $2 {[%emt 0:02:04]} (32. Nd6 $1 $18 {[%cal Rd6c8] and the rest is easy.} Qd7 33. c4) 32... Rf5 $2 {[%emt 0:04:54]} (32... Ka6 $16) 33. Rxf5 {[%emt 0:02:20]} gxf5 {[%emt 0:00:03]} 34. Qf4 {[%emt 0:00:08]} Bc3 {[%emt 0:05:50] [#]} 35. Re2 {[%emt 0:01:38]} b5 $2 {[%emt 0:00:24]} (35... h5 36. Kh2 Bf6) 36. axb5 $18 {[%emt 0:04:42] White is clearly winning.} cxb5 {[%emt 0:00:24]} 37. Qd6 {[%emt 0:00:42]} Bf6 {[%emt 0:01:21]} 38. Qb6+ {[%emt 0:00:45]} Ka8 {[%emt 0:00:01]} 39. Qxa5+ {[%emt 0:06:57]} ({Stronger than} 39. Qxb5 Bxc4 40. dxc4 Rxe2 $11) 39... Ra7 {[%emt 0:00:27]} 40. Nb6+ {[%emt 0:00:08] Weighted Error Value: White=0.26 (precise) /Black=0.33.  Loses game:     	---       	Black=2      Missed win:     	White=1     	---        Mistake:       	White=1     	Black=3      Inaccurate:     	White=2     	Black=1      OK:         	White=14    	Black=10     Best:        	---       	Black=3} 1-0

[Event "WWRR IM-Group 2024"]
[Site "Wachtebeke"]
[Date "2024.02.12"]
[Round "3.3"]
[White "Van Cappellen, Jonas"]
[Black "Ochs, Daniel Elias"]
[Result "1-0"]
[ECO "B22"]
[WhiteElo "2212"]
[BlackElo "2280"]
[Annotator "TA"]
[PlyCount "83"]
[EventDate "2024.02.12"]
[EventType "tourn"]
[EventCountry "BEL"]
[SourceTitle "playchess.com"]
[Source "ChessBase"]
[SourceQuality "1"]
[TimeControl "40/5400+30:900+30"]

{[%evp 20,83,7,0,47,30,53,49,82,75,83,58,89,92,99,100,95,101,98,96,95,99,95,86,91,78,115,95,94,106,104,103,134,142,146,105,109,110,134,133,130,127,250,265,295,277,250,97,101,103,96,91,162,162,590,589,1927,970,4894,2046,29984,29985,29984,29984,29998,29999]} 1. e4 {[%emt 0:01:58][%cal Be2e4,Be4e5][%mdl 32]} c5 {[%emt 0:00:05]} 2. c3 {[%emt 0:00:19]} Nf6 {[%emt 0:00:06]} 3. e5 {[%emt 0:00:08]} Nd5 {[%emt 0:00:03]} 4. Nf3 {[%emt 0:00:09]} d6 {[%emt 0:00:11]} 5. exd6 {[%emt 0:00:25]} e6 {[%emt 0:01:15]} 6. g3 {[%emt 0:00:10]} Bxd6 {[%emt 0:02:14]} 7. Bg2 {[%emt 0:00:12]} Nc6 {[%emt 0:05:35]} 8. d4 {[%emt 0:00:31]} cxd4 {[%emt 0:00:44]} 9. Nxd4 {[%emt 0:00:11]} Nxd4 {[%emt 0:00:43]} 10. Qxd4 {[%emt 0:00:10]} O-O {[%emt 0:01:23]} 11. O-O {[%emt 0:00:13][%cal Ob1d2]} Qb6 {[%emt 0:08:58]} (11... Qc7 $11) 12. Qxb6 $14 {[%emt 0:03:42]} Nxb6 {[%emt 0:00:29][%cal Bd5b6,Bb6d7,Bd7f6][%mdl 32]} 13. Rd1 {[%emt 0:11:00]} Bc7 {[%emt 0:19:25] White is slightly better.} 14. Na3 {[%emt 0:12:14][%cal Bb1a3,Ba3c2,Bc2e3][%mdl 32]} a6 {[%emt 0:01:45]} 15. c4 {[%emt 0:08:39]} Rb8 {[%emt 0:08:43]} 16. Be3 {[%emt 0:07:24]} Nd7 {[%emt 0:10:22]} 17. Nc2 {[%emt 0:20:51]} Nf6 {[%emt 0:08:58]} 18. Ba7 {[%emt 0:05:59]} Ra8 {[%emt 0:00:12]} 19. Bc5 {[%emt 0:00:46]} Re8 {[%emt 0:00:44]} 20. Bd6 {[%emt 0:00:31]} Bxd6 {[%emt 0:00:30]} 21. Rxd6 {[%emt 0:00:03]} Kf8 {[%emt 0:03:21]} 22. Ne3 {[%emt 0:01:12]} Ke7 {[%emt 0:04:00]} 23. Rad1 {[%emt 0:01:10]} Rb8 {[%emt 0:03:29]} 24. c5 {[%emt 0:02:05]} Bd7 {[%emt 0:06:13]} 25. Rb6 $36 {[%emt 0:05:16][%mdl 2048] Keeping Black busy. White is much more active.} Bc6 {[%emt 0:02:20]} 26. Bxc6 {[%emt 0:00:10]} bxc6 {[%emt 0:00:03]} 27. Rxc6 {[%emt 0:02:01]} (27. Rxa6 Rxb2 28. Ra7+ (28. Rxc6 Rxa2 29. Rc7+ Kf8 $14) 28... Kf8 $14) 27... Rxb2 {[%emt 0:00:13]} 28. Rxa6 {[%emt 0:00:31]} Rc8 {[%emt 0:01:57]} 29. Ra7+ {[%emt 0:01:01]} Kf8 {[%emt 0:00:06][%cal Ob2b8]} 30. Nc4 {[%emt 0:07:32]} Rc2 {[%emt 0:01:24] [#]} (30... Rbb8 $16) 31. Nb6 $1 $18 {[%emt 0:01:40]} Re8 {[%emt 0:05:04]} (31... R8xc5 $2 32. Rd8+ Ne8 33. Raa8 $18) 32. Nd7+ {[%emt 0:00:27]} Kg8 {[%emt 0:00:36]} 33. Nxf6+ {[%emt 0:00:50]} (33. a4 $18 {is the precise move to win.}) 33... gxf6 {[%emt 0:00:06][%mdl 4096] Endgame. KRR-KRR} 34. Rdd7 {[%emt 0:00:15]} Rf8 {[%emt 0:00:58]} 35. Rdc7 {[%emt 0:00:39]} f5 {[%emt 0:00:16]} (35... Kg7 $16 36. a4 Kg6) 36. a4 {[%emt 0:00:59]} Rb8 $2 {[%emt 0:00:21] [#] Wards off a5} (36... Kg7 {is a better chance.} 37. c6 Kg6) 37. Rxf7 {[%emt 0:03:00]} Rb1+ {[%emt 0:00:30]} 38. Kg2 {[%emt 0:00:02]} Rbb2 {[%emt 0:00:10]} 39. Rfd7 {[%emt 0:00:34]} (39. Rxh7 Rxf2+ 40. Kg1 Rfd2 41. Rhg7+ Kf8 42. Raf7+ Ke8 43. Re7+ Kd8 $19) (39. Rg7+ $142 Kh8 40. Rgd7 (40. Rxh7+ Kg8 $18)) 39... Rxf2+ {[%emt 0:00:54]} 40. Kg1 {[%emt 0:00:04][%cal Rd7d8] White mates.} Rg2+ {[%emt 0:01:01]} 41. Kf1 {[%emt 0:15:10][%cal Rd7d8]} Rgd2 {[%emt 0:15:08]} 42. Ra8+ {[%emt 0:00:11] Weighted Error Value: White=0.09 (flawless) /Black=0.57.  Mistake:       	White=1     	Black=3      Inaccurate:     	White=1     	Black=6      OK:         	White=14    	Black=8      Best:        	White=3     	Black=3} 1-0

[Event "WWRR IM-Group 2024"]
[Site "Wachtebeke"]
[Date "2024.02.12"]
[Round "3.4"]
[White "De Waele, Warre"]
[Black "Victor, Julian"]
[Result "0-1"]
[ECO "B12"]
[WhiteElo "2345"]
[BlackElo "2216"]
[Annotator "RC"]
[PlyCount "70"]
[EventDate "2024.02.12"]
[EventType "tourn"]
[EventCountry "BEL"]
[SourceTitle "playchess.com"]
[Source "ChessBase"]
[SourceQuality "1"]
[TimeControl "40/5400+30:900+30"]

1. e4 {[%emt 0:00:04]} c6 {[%emt 0:00:55]} 2. d4 {[%emt 0:00:50]} d5 {[%emt 0:00:04]} 3. e5 {[%emt 0:00:06]} Bf5 {[%emt 0:00:18]} 4. h4 {[%emt 0:00:39]} a6 {[%emt 0:00:29]} 5. h5 {[%emt 0:03:27]} c5 {[%emt 0:01:11]} 6. dxc5 {[%emt 0:00:43]} Nc6 {[%emt 0:00:39]} 7. Bd3 {[%emt 0:02:39]} Qd7 {[%emt 0:00:39]} 8. Nf3 {[%emt 0:02:36]} Bg4 {[%emt 0:03:44]} 9. Bf4 {[%emt 0:05:29]} e6 {[%emt 0:04:14]} 10. Nbd2 {[%emt 0:03:10]} Bxc5 {[%emt 0:03:59]} 11. Rh4 {[%emt 0:04:07]} Nh6 {[%emt 0:07:44]} 12. Bxh6 {[%emt 0:00:25]} Bxf3 {[%emt 0:00:10]} 13. Nxf3 {[%emt 0:00:31]} gxh6 {[%emt 0:00:05]} 14. a3 {[%emt 0:13:10]} Rg8 {[%emt 0:05:26]} 15. g3 {[%emt 0:09:28]} Be7 {[%emt 0:03:17]} 16. Rf4 {[%emt 0:05:27]} Bg5 {[%emt 0:05:59]} 17. Rg4 {[%emt 0:00:29]} O-O-O {[%emt 0:04:19]} 18. b4 {[%emt 0:11:06]} f5 {[%emt 0:06:00]} 19. exf6 {[%emt 0:00:11]} Bxf6 {[%emt 0:02:07]} 20. Rxg8 {[%emt 0:00:12]} Rxg8 {[%emt 0:00:05]} 21. Rb1 {[%emt 0:00:28]} e5 {[%emt 0:01:48]} 22. Be2 {[%emt 0:02:18]} e4 {[%emt 0:02:15]} 23. Nh2 {[%emt 0:02:38]} Bc3+ {[%emt 0:07:39]} 24. Kf1 {[%emt 0:00:07]} Ne5 {[%emt 0:00:27]} 25. Kg2 {[%emt 0:03:12]} d4 {[%emt 0:02:48]} 26. f4 {[%emt 0:06:54]} exf3+ {[%emt 0:04:14]} 27. Bxf3 {[%emt 0:00:38]} Nc4 {[%emt 0:01:43]} 28. Nf1 {[%emt 0:00:24]} Qd6 {[%emt 0:02:34]} 29. g4 {[%emt 0:03:05]} Rf8 {[%emt 0:15:12]} 30. Rb3 {[%emt 0:07:11]} Qf4 {[%emt 0:01:20]} 31. Be2 {[%emt 0:02:16]} Qf2+ {[%emt 0:02:28]} 32. Kh1 {[%emt 0:02:02]} Ne5 {[%emt 0:03:12]} 33. Nh2 {[%emt 0:01:25]} Qe3 {[%emt 0:00:39]} 34. Nf1 {[%emt 0:01:07]} Qe4+ {[%emt 0:02:55]} 35. Kg1 {[%emt 0:00:02]} Nf3+ {[%emt 0:00:28]} 0-1

[Event "WWRR IM-Group 2024"]
[Site "Wachtebeke"]
[Date "2024.02.12"]
[Round "3.5"]
[White "Matnadze Bujiashvili, Ann"]
[Black "Dobrikov, Marco"]
[Result "0-1"]
[ECO "D11"]
[WhiteElo "2364"]
[BlackElo "2260"]
[Annotator "TA"]
[PlyCount "62"]
[EventDate "2024.02.12"]
[EventType "tourn"]
[EventCountry "BEL"]
[SourceTitle "playchess.com"]
[Source "ChessBase"]
[SourceQuality "1"]
[TimeControl "40/5400+30:900+30"]

{[%evp 11,62,37,43,-39,-50,-45,-52,-69,-62,-106,-78,-69,-37,-118,-92,-106,-112,-109,-112,-111,-100,-105,-109,-102,-107,-143,-145,-182,-166,-168,-168,-171,-156,-255,-225,-248,-196,-276,-271,-291,-174,-170,-141,-251,-258,-29992,-29993,-29994,-29995,-29995,-29996,-29996,-29997]} 1. Nf3 {[%emt 0:00:06]} Nf6 {[%emt 0:00:19]} 2. d4 {[%emt 0:00:07]} d5 {[%emt 0:00:05]} 3. c4 {[%emt 0:00:08]} c6 {[%emt 0:00:05]} 4. Qc2 {[%emt 0:00:13]} Bg4 {[%emt 0:06:45]} 5. Ne5 {[%emt 0:01:16]} e6 {[%emt 0:08:10]} 6. Nxg4 {[%emt 0:01:22]} Nxg4 {[%emt 0:00:01]} 7. g3 {[%emt 0:03:12]} (7. Nc3 $14) 7... Bb4+ $15 {[%emt 0:04:57]} 8. Nc3 {[%emt 0:03:17]} dxc4 {[%emt 0:00:57]} 9. f3 {[%emt 0:01:44] Black is slightly better.} Nf6 {[%emt 0:00:24] Black is more active.} 10. Be3 {[%emt 1:24:05]} Nd5 {[%emt 0:06:06]} 11. Bd2 {[%emt 0:00:00]} Qf6 {[%emt 0:06:33]} 12. O-O-O {[%emt 0:00:00]} ({Better is} 12. Rd1 $15) 12... Nxc3 {[%emt 0:02:15]} (12... Qxd4 $2 13. Nxd5 cxd5 14. Bxb4 Qe3+ 15. Kb1 $18) 13. Bxc3 {[%emt 0:00:00]} Bxc3 {[%emt 0:00:16]} 14. Qxc3 {[%emt 0:00:00]} b5 {[%emt 0:00:13]} 15. Bg2 {[%emt 0:00:00]} O-O {[%emt 0:02:34]} 16. f4 {[%emt 0:00:00]} a5 {[%emt 0:00:15]} 17. e4 {[%emt 0:00:00]} Na6 {[%emt 0:03:02]} 18. e5 {[%emt 0:00:00]} Qe7 {[%emt 0:01:21]} 19. Kb1 {[%emt 0:00:00]} Nb4 {[%emt 0:00:11]} 20. Be4 {[%emt 0:00:00]} Nd5 {[%emt 0:00:35]} 21. Qf3 {[%emt 0:00:00]} a4 {[%emt 0:02:18]} 22. f5 {[%emt 0:00:00]} (22. Rc1 $17) 22... a3 $19 {[%emt 0:00:59]} 23. b3 {[%emt 0:00:00]} cxb3 {[%emt 0:01:16]} 24. Bxd5 {[%emt 0:00:00]} (24. axb3 $142 exf5 25. Bxd5 cxd5 26. Rc1) 24... cxd5 {[%emt 0:00:04]} (24... exd5 25. axb3 Rfb8 26. Rc1 $11) 25. axb3 {[%emt 0:00:00]} a2+ {[%emt 0:00:31]} (25... Rfc8 $142 {aiming for ...Qb4.} 26. Qe3 Qb4 (26... exf5 $2 27. Rc1 $19)) 26. Ka1 {[%emt 0:00:00]} Qb4 {[%emt 0:00:35]} 27. Rd3 {[%emt 0:00:00]} (27. fxe6 $17 fxe6 28. Qe3) 27... Rfc8 {[%emt 0:02:40] ( -> ...Rc2)} 28. Rf1 $2 {[%emt 0:00:00] [#]} (28. Qe2 $19) 28... Rc2 {[%emt 0:02:31] Black mates.} 29. Qd1 {[%emt 0:00:00]} Rac8 {[%emt 0:00:33]} 30. fxe6 {[%emt 0:00:00]} Qa3 {[%emt 0:01:20][%csl Gc2][%cal Ra3b2]} (30... Rxh2 31. exf7+ Kf8 32. e6 $16) 31. exf7+ {[%emt 0:00:00]} Kf8 {[%emt 0:00:09] Weighted Error Value: White=0.52/Black=0.13 (very precise) .  Mistake:       	White=5     	Black=1      Inaccurate:     	White=2     	Black=1      OK:         	White=5     	Black=8      Best:        	White=1     	Black=4} 0-1

[Event "WWRR IM-Group 2024"]
[Site "Wachtebeke"]
[Date "2024.02.12"]
[Round "4.1"]
[White "Leenhouts, Koen"]
[Black "Dobrikov, Marco"]
[Result "0-1"]
[ECO "A58"]
[WhiteElo "2433"]
[BlackElo "2260"]
[Annotator "RC"]
[PlyCount "70"]
[EventDate "2024.02.12"]
[EventType "tourn"]
[EventCountry "BEL"]
[SourceTitle "playchess.com"]
[Source "ChessBase"]
[SourceQuality "1"]
[TimeControl "40/5400+30:900+30"]

1. d4 {[%emt 0:01:09]} Nf6 {[%emt 0:00:07]} 2. c4 {[%emt 0:00:06]} c5 {[%emt 0:00:07]} 3. d5 {[%emt 0:00:09]} b5 {[%emt 0:00:03]} 4. cxb5 {[%emt 0:01:57]} a6 {[%emt 0:00:04]} 5. bxa6 {[%emt 0:00:38]} e6 {[%emt 0:00:19]} 6. Nc3 {[%emt 0:01:03]} exd5 {[%emt 0:00:04]} 7. Nxd5 {[%emt 0:00:39]} Nxa6 {[%emt 0:00:09]} 8. e4 {[%emt 0:06:43]} Be7 {[%emt 0:06:32]} 9. Nf3 {[%emt 0:03:37]} Nxd5 {[%emt 0:05:18]} 10. exd5 {[%emt 0:07:54]} O-O {[%emt 0:01:06]} 11. d6 {[%emt 0:04:09]} Bf6 {[%emt 0:00:34]} 12. Be2 {[%emt 0:01:18]} Nb4 {[%emt 0:07:09]} 13. O-O {[%emt 0:01:29]} Bb7 {[%emt 0:04:54]} 14. a3 {[%emt 0:07:18]} Re8 {[%emt 0:01:27]} 15. Bc4 {[%emt 0:07:58]} Be4 {[%emt 0:12:49]} 16. Bd2 {[%emt 0:11:34]} Nd3 {[%emt 0:04:54]} 17. Bxd3 {[%emt 0:11:24]} Bxd3 {[%emt 0:00:04]} 18. Ba5 {[%emt 0:00:12]} Qxa5 {[%emt 0:00:23]} 19. Qxd3 {[%emt 0:00:08]} Bxb2 {[%emt 0:00:18]} 20. Ng5 {[%emt 0:02:15]} g6 {[%emt 0:00:23]} 21. Qh3 {[%emt 0:13:34]} h5 {[%emt 0:00:29]} 22. Rab1 {[%emt 0:10:37]} Bf6 {[%emt 0:02:54]} 23. Nxf7 {[%emt 0:00:20]} Ra7 {[%emt 0:07:56]} 24. Ng5 {[%emt 0:03:48]} Bxg5 {[%emt 0:00:44]} 25. Qg3 {[%emt 0:00:02]} Qd8 {[%emt 0:04:09]} 26. h4 {[%emt 0:00:04]} Bf6 {[%emt 0:00:07]} 27. Qxg6+ {[%emt 0:00:06]} Bg7 {[%emt 0:00:01]} 28. Rfe1 {[%emt 0:00:44]} Re6 {[%emt 0:05:39]} 29. Rxe6 {[%emt 0:00:14]} dxe6 {[%emt 0:00:01]} 30. Qxe6+ {[%emt 0:00:27]} Rf7 {[%emt 0:00:57]} 31. Rb5 {[%emt 0:03:42]} Bd4 {[%emt 0:07:44]} 32. Qg6+ {[%emt 0:00:38]} Rg7 {[%emt 0:00:53]} 33. Qxh5 {[%emt 0:00:29]} Qa8 {[%emt 0:04:50]} 34. Rb7 {[%emt 0:00:34]} Rxb7 {[%emt 0:01:33]} 35. Qd5+ {[%emt 0:00:03]} Kh8 {[%emt 0:00:23]} 0-1

[Event "WWRR IM-Group 2024"]
[Site "Wachtebeke"]
[Date "2024.02.12"]
[Round "4.2"]
[White "Victor, Julian"]
[Black "Matnadze Bujiashvili, Ann"]
[Result "0-1"]
[ECO "D77"]
[WhiteElo "2216"]
[BlackElo "2364"]
[Annotator "RC"]
[PlyCount "72"]
[EventDate "2024.02.12"]
[EventType "tourn"]
[EventCountry "BEL"]
[SourceTitle "playchess.com"]
[Source "ChessBase"]
[SourceQuality "1"]
[TimeControl "40/5400+30:900+30"]

1. d4 {[%emt 0:00:04]} Nf6 {[%emt 0:00:05]} 2. c4 {[%emt 0:00:06]} e6 {[%emt 0:00:04]} 3. g3 {[%emt 0:00:14]} d5 {[%emt 0:00:07]} 4. Bg2 {[%emt 0:00:06]} g6 {[%emt 0:00:04]} 5. Nf3 {[%emt 0:00:11]} Bg7 {[%emt 0:00:04]} 6. O-O {[%emt 0:00:06]} O-O {[%emt 0:00:04]} 7. Nc3 {[%emt 0:00:12]} Na6 {[%emt 0:00:18]} 8. h4 {[%emt 0:00:22]} c5 {[%emt 0:01:05]} 9. cxd5 {[%emt 0:00:28]} Nxd5 {[%emt 0:06:19]} 10. Nxd5 {[%emt 0:00:43]} exd5 {[%emt 0:01:12]} 11. dxc5 {[%emt 0:03:48]} Nxc5 {[%emt 0:01:33]} 12. Be3 {[%emt 0:00:38]} Ne6 {[%emt 0:02:19]} 13. Nd4 {[%emt 0:03:44]} Qf6 {[%emt 0:00:31]} 14. Nxe6 {[%emt 0:07:54]} Bxe6 {[%emt 0:04:07]} 15. Qd2 {[%emt 0:11:21]} Rfe8 {[%emt 0:08:53]} 16. b3 {[%emt 0:04:12]} a5 {[%emt 0:06:09]} 17. Rac1 {[%emt 0:05:05]} a4 {[%emt 0:06:57]} 18. Qb4 {[%emt 0:03:15]} Qb2 {[%emt 0:02:58]} 19. Bf3 {[%emt 0:24:41]} a3 {[%emt 0:05:29]} 20. Rfd1 {[%emt 0:06:44]} Qxa2 {[%emt 0:07:36]} 21. Rd2 {[%emt 0:00:19]} Qb2 {[%emt 0:00:23]} 22. Rdc2 {[%emt 0:07:36]} Bf5 {[%emt 0:13:32]} 23. Rc7 {[%emt 0:05:15]} a2 {[%emt 0:03:33]} 24. Bxd5 {[%emt 0:00:35]} a1=Q {[%emt 0:03:18]} 25. Bxf7+ {[%emt 0:01:04]} Kh8 {[%emt 0:00:01]} 26. Bxe8 {[%emt 0:01:19]} Rxe8 {[%emt 0:10:51]} 27. Rxa1 {[%emt 0:00:10]} Qxa1+ {[%emt 0:00:02]} 28. Rc1 {[%emt 0:01:32]} Qb2 {[%emt 0:05:53]} 29. Qc4 {[%emt 0:05:31]} h5 {[%emt 0:01:48]} 30. Kh2 {[%emt 0:01:39]} Kh7 {[%emt 0:02:28]} 31. Rd1 {[%emt 0:00:24]} Qe5 {[%emt 0:02:06]} 32. Qb4 {[%emt 0:02:37]} Qe4 {[%emt 0:00:42]} 33. Qb5 {[%emt 0:00:58]} Re5 {[%emt 0:00:21]} 34. Qb6 {[%emt 0:00:35]} Re6 {[%emt 0:00:33]} 35. Qb5 {[%emt 0:00:47]} Qg4 {[%emt 0:02:25]} 36. Kg1 {[%emt 0:00:54]} Rxe3 {[%emt 0:00:14]} 0-1